[Event "26th Abu Dhabi Master 2019"]
[Site "Abu Dhabi"]
[Date "2019.08.03"]
[Round "2.15"]
[White "Can, Emre"]
[Black "Dimakiling, Oliver"]
[Result "1/2-1/2"]
[ECO "E15"]
[WhiteElo "2595"]
[BlackElo "2403"]
[Annotator "ChessBase"]
[PlyCount "131"]
[EventDate "2019.08.02"]
[EventType "swiss"]
[EventCountry "UAE"]
[SourceTitle "playchess.com"]
[Source "ChessBase"]
[SourceQuality "1"]
[TimeControl "5400+30"]

1. d4 {[%emt 0:05:03]} Nf6 {[%emt 0:00:00]} 2. c4 {[%emt 0:00:17]} e6 {[%emt 0:00:21]} 3. Nf3 {[%emt 0:00:16]} b6 {[%emt 0:00:59]} 4. g3 {[%emt 0:00:40]} Ba6 {[%emt 0:00:26]} 5. Nbd2 {[%emt 0:00:21]} c5 {[%emt 0:01:10]} 6. e4 {[%emt 0:04:56]} cxd4 {[%emt 0:00:51]} 7. e5 {[%emt 0:00:25]} Ng4 {[%emt 0:03:22]} 8. h3 {[%emt 0:00:17]} Nh6 {[%emt 0:04:45]} 9. Bg2 {[%emt 0:00:16]} Bb7 {[%emt 0:01:15]} 10. O-O {[%emt 0:04:03]} f5 {[%emt 0:03:35]} 11. Nxd4 {[%emt 0:07:48]} Bxg2 {[%emt 0:00:25]} 12. Kxg2 {[%emt 0:00:08]} Nf7 {[%emt 0:01:17]} 13. Qa4 {[%emt 0:11:27]} Qe7 {[%emt 0:08:41]} 14. N2f3 {[%emt 0:01:02]} Qb4 {[%emt 0:01:49]} 15. Qc2 {[%emt 0:00:44]} Be7 {[%emt 0:02:57]} 16. Be3 {[%emt 0:05:52]} O-O {[%emt 0:00:37]} 17. Rfd1 {[%emt 0:13:15]} Rc8 {[%emt 0:01:16]} 18. Rac1 {[%emt 0:00:54]} Qa5 {[%emt 0:01:20]} 19. a3 {[%emt 0:03:46]} Qa6 {[%emt 0:00:42]} 20. g4 {[%emt 0:04:23]} fxg4 {[%emt 0:03:58]} 21. hxg4 {[%emt 0:00:09]} Qb7 {[%emt 0:00:04]} 22. Rh1 {[%emt 0:03:21]} g6 {[%emt 0:00:47]} 23. Rh3 {[%emt 0:00:53]} Kg7 {[%emt 0:10:59]} 24. Rch1 {[%emt 0:04:48]} Rh8 {[%emt 0:00:22]} 25. Ne2 {[%emt 0:05:17]} Nc6 {[%emt 0:05:47]} 26. Nf4 {[%emt 0:11:15]} Rag8 {[%emt 0:07:48]} 27. Kf1 {[%emt 0:04:15]} Ncd8 {[%emt 0:05:49]} 28. Ke2 {[%emt 0:02:14]} Qc6 {[%emt 0:04:33]} 29. Qd3 {[%emt 0:00:10]} Kf8 {[%emt 0:03:23]} 30. Bd4 {[%emt 0:01:41]} Rg7 {[%emt 0:06:27]} 31. Bc3 {[%emt 0:00:47]} Ke8 {[%emt 0:02:43]} 32. Nd5 {[%emt 0:00:57]} h6 {[%emt 0:01:55]} 33. Nd4 {[%emt 0:01:50]} Qb7 {[%emt 0:01:18]} 34. Nxe7 {[%emt 0:00:37]} Nxe5 {[%emt 0:05:24]} 35. Qg3 {[%emt 0:00:07]} Qe4+ {[%emt 0:01:06]} 36. Qe3 {[%emt 0:00:05]} Qxg4+ {[%emt 0:00:11]} 37. Nf3 {[%emt 0:00:56]} Qxc4+ {[%emt 0:00:05]} 38. Kd2 {[%emt 0:00:39]} Ng4 {[%emt 0:02:04]} 39. Qd4 {[%emt 0:00:41]} Qxd4+ {[%emt 0:00:08]} 40. Bxd4 {[%emt 0:00:05]} Rxe7 {[%emt 0:00:39]} 41. Bxh8 {[%emt 0:00:16]} Nxf2 {[%emt 0:00:04]} 42. Rxh6 {[%emt 0:00:39]} Nxh1 {[%emt 0:00:17]} 43. Rxh1 {[%emt 0:00:14]} Rf7 {[%emt 0:01:18]} 44. Ke3 {[%emt 0:00:55]} Rf5 {[%emt 0:01:18]} 45. Ne5 {[%emt 0:02:56]} d6 {[%emt 0:02:30]} 46. Nxg6 {[%emt 0:00:42]} e5 {[%emt 0:00:03]} 47. Rg1 {[%emt 0:00:33]} Ne6 {[%emt 0:00:55]} 48. Nh4 {[%emt 0:00:30]} Rh5 {[%emt 0:00:15]} 49. Bf6 {[%emt 0:00:17]} Kf7 {[%emt 0:00:07]} 50. Rf1 {[%emt 0:00:11]} Nf4 {[%emt 0:00:03]} 51. Bd8 {[%emt 0:00:19]} Ke8 {[%emt 0:00:24]} 52. Bf6 {[%emt 0:01:13]} Nd5+ {[%emt 0:00:06]} 53. Kd3 {[%emt 0:00:27]} Nxf6 {[%emt 0:00:13]} 54. Rxf6 {[%emt 0:00:05]} Rxh4 {[%emt 0:00:24]} 55. Rxd6 {[%emt 0:00:07]} Ke7 {[%emt 0:00:18]} 56. Rg6 {[%emt 0:00:16]} Rd4+ {[%emt 0:01:06]} 57. Ke3 {[%emt 0:00:24]} Ra4 {[%emt 0:00:38]} 58. Rh6 {[%emt 0:00:27]} Kd7 {[%emt 0:00:37]} 59. Rg6 {[%emt 0:00:13]} Kc7 {[%emt 0:05:10]} 60. Re6 {[%emt 0:00:15]} Ra5 {[%emt 0:00:04]} 61. Ke4 {[%emt 0:00:26]} Rb5 {[%emt 0:00:06]} 62. b4 {[%emt 0:00:34]} a5 {[%emt 0:00:05]} 63. Rxe5 {[%emt 0:00:23]} Kc6 {[%emt 0:00:09]} 64. Re6+ {[%emt 0:00:32]} Kd7 {[%emt 0:00:22]} 65. Re5 {[%emt 0:00:17]} Kc6 {[%emt 0:00:04]} 66. Re6+ 1/2-1/2

[Event "26th Abu Dhabi Master 2019"]
[Site "Abu Dhabi"]
[Date "2019.08.03"]
[Round "2.16"]
[White "Sammed Jaykumar, Shete"]
[Black "Petrosyan, Manuel"]
[Result "0-1"]
[ECO "C50"]
[WhiteElo "2416"]
[BlackElo "2592"]
[Annotator "ChessBase"]
[PlyCount "134"]
[EventDate "2019.08.02"]
[EventType "swiss"]
[EventCountry "UAE"]
[SourceTitle "playchess.com"]
[Source "ChessBase"]
[SourceQuality "1"]
[TimeControl "5400+30"]

1. e4 {[%emt 0:00:00]} e5 {[%emt 0:01:21]} 2. Nf3 {[%emt 0:00:00]} Nc6 {[%emt 0:00:06]} 3. Bc4 Nf6 4. d3 Bc5 5. O-O d6 6. c3 O-O 7. h3 h6 8. Bb3 a5 9. a4 Re8 10. Na3 Be6 11. Nc4 d5 12. exd5 Bxd5 13. Re1 e4 14. dxe4 Bxc4 15. Bxc4 Qxd1 16. Rxd1 Nxe4 17. Rf1 Ne5 18. Nxe5 Rxe5 19. g4 g5 20. Kg2 Nd6 21. Bd3 Rae8 22. c4 Bd4 23. Rb1 Ne4 24. Bxe4 Rxe4 25. Bd2 Bb6 26. b3 Rd8 27. Rfe1 Rxe1 28. Bxe1 {[%emt 1:41:58]} c5 {[%emt 1:35:00]} 29. Rc1 {[%emt 0:01:00]} Bc7 {[%emt 0:00:28]} 30. Rc3 {[%emt 0:00:32]} Bf4 {[%emt 0:01:10]} 31. Kf1 {[%emt 0:00:29]} Bd2 {[%emt 0:03:22]} 32. Bxd2 {[%emt 0:01:26]} Rxd2 {[%emt 0:00:07]} 33. Kg2 {[%emt 0:00:06]} Kg7 {[%emt 0:00:44]} 34. Kg3 {[%emt 0:00:09]} f5 {[%emt 0:00:44]} 35. gxf5 {[%emt 0:00:47]} Kf6 {[%emt 0:00:54]} 36. f4 {[%emt 0:00:25]} Kxf5 {[%emt 0:00:21]} 37. fxg5 {[%emt 0:00:06]} Kxg5 {[%emt 0:00:06]} 38. Rf3 {[%emt 0:00:16]} Rd4 {[%emt 0:00:58]} 39. Re3 {[%emt 0:00:40]} Kf5 {[%emt 0:01:02]} 40. Kf3 {[%emt 0:01:23]} h5 {[%emt 0:00:53]} 41. Kg3 {[%emt 0:00:25]} h4+ {[%emt 0:00:22]} 42. Kf3 {[%emt 0:00:16]} Rd2 {[%emt 0:00:20]} 43. Re7 {[%emt 0:00:54]} Rd3+ {[%emt 0:01:54]} 44. Re3 {[%emt 0:00:17]} Rxe3+ {[%emt 0:00:40]} 45. Kxe3 {[%emt 0:00:04]} Ke5 {[%emt 0:00:02]} 46. Kf3 {[%emt 0:00:13]} Kd4 {[%emt 0:00:17]} 47. Kg4 {[%emt 0:00:13]} Kc3 {[%emt 0:00:05]} 48. Kxh4 {[%emt 0:00:03]} Kxb3 {[%emt 0:00:11]} 49. Kg5 {[%emt 0:02:03]} Kxc4 {[%emt 0:00:05]} 50. h4 {[%emt 0:00:03]} Kb3 {[%emt 0:00:30]} 51. h5 {[%emt 0:00:50]} c4 {[%emt 0:00:04]} 52. h6 {[%emt 0:00:05]} c3 {[%emt 0:00:03]} 53. h7 {[%emt 0:00:03]} c2 {[%emt 0:00:05]} 54. h8=Q {[%emt 0:00:06]} c1=Q+ {[%emt 0:00:05]} 55. Kf5 {[%emt 0:00:31]} Qc5+ {[%emt 0:00:19]} 56. Ke4 {[%emt 0:00:53]} Qc4+ {[%emt 0:00:06]} 57. Kf5 {[%emt 0:00:03]} Kxa4 {[%emt 0:00:24]} 58. Qa1+ {[%emt 0:00:31]} Kb5 {[%emt 0:00:04]} 59. Ke5 {[%emt 0:00:05]} a4 {[%emt 0:00:45]} 60. Qb2+ {[%emt 0:00:16]} Ka6 {[%emt 0:00:29]} 61. Qa3 {[%emt 0:00:26]} b6 {[%emt 0:00:33]} 62. Qa1 {[%emt 0:00:13]} Ka5 {[%emt 0:00:33]} 63. Kf5 {[%emt 0:00:20]} Qd3+ {[%emt 0:00:26]} 64. Kf4 {[%emt 0:00:14]} a3 {[%emt 0:00:13]} 65. Qe1+ {[%emt 0:02:03]} Ka4 {[%emt 0:00:07]} 66. Qe8+ {[%emt 0:00:13]} b5 {[%emt 0:00:09]} 67. Kg5 {[%emt 0:00:15]} Qd5+ {[%emt 0:00:24]} 0-1

[Event "26th Abu Dhabi Master 2019"]
[Site "Abu Dhabi"]
[Date "2019.08.03"]
[Round "2.17"]
[White "Vaishali R"]
[Black "Santos Latasa, Jaime"]
[Result "1/2-1/2"]
[ECO "C11"]
[WhiteElo "2344"]
[BlackElo "2594"]
[Annotator "ChessBase"]
[PlyCount "89"]
[EventDate "2019.08.02"]
[EventType "swiss"]
[EventCountry "UAE"]
[SourceTitle "playchess.com"]
[Source "ChessBase"]
[SourceQuality "1"]
[TimeControl "5400+30"]

1. e4 {[%emt 0:02:13]} e6 {[%emt 0:00:00]} 2. d4 {[%emt 0:00:05]} d5 {[%emt 0:00:00]} 3. Nc3 {[%emt 0:00:04]} Nf6 {[%emt 0:00:00]} 4. e5 {[%emt 0:00:05]} Nfd7 {[%emt 0:00:00]} 5. f4 {[%emt 0:00:04]} c5 {[%emt 0:00:00]} 6. Nf3 {[%emt 0:00:03]} a6 {[%emt 0:00:03]} 7. Be3 {[%emt 0:00:23]} Qb6 {[%emt 0:00:06]} 8. Na4 {[%emt 0:05:51]} Qa5+ {[%emt 0:00:18]} 9. c3 {[%emt 0:00:10]} cxd4 {[%emt 0:00:08]} 10. b4 {[%emt 0:00:16]} Qc7 {[%emt 0:00:06]} 11. Qxd4 {[%emt 0:02:44]} b5 {[%emt 0:00:08]} 12. Nb2 {[%emt 0:00:07]} f6 {[%emt 0:00:04]} 13. exf6 {[%emt 0:02:24]} Nxf6 {[%emt 0:00:06]} 14. Ne5 {[%emt 0:14:01]} Nc6 {[%emt 0:02:17]} 15. Nxc6 {[%emt 0:09:52]} Qxc6 {[%emt 0:00:28]} 16. Be2 {[%emt 0:00:05]} Bd6 {[%emt 0:01:46]} 17. O-O {[%emt 0:01:31]} O-O {[%emt 0:00:11]} 18. a4 {[%emt 0:03:37]} Ne4 {[%emt 0:06:41]} 19. Ra3 {[%emt 0:10:25]} Bd7 {[%emt 0:05:52]} 20. Bf3 {[%emt 0:08:46]} Qc7 {[%emt 0:11:09]} 21. Bxe4 {[%emt 0:17:42]} dxe4 {[%emt 0:00:35]} 22. axb5 {[%emt 0:01:10]} Bxb5 {[%emt 0:01:02]} 23. c4 {[%emt 0:01:04]} Bc6 {[%emt 0:00:26]} 24. c5 {[%emt 0:01:42]} Bxf4 {[%emt 0:01:10]} 25. Bxf4 {[%emt 0:01:50]} Rxf4 {[%emt 0:00:07]} 26. Rd1 {[%emt 0:00:43]} Qf7 {[%emt 0:07:09]} 27. Rg3 {[%emt 0:08:19]} Rf8 {[%emt 0:00:32]} 28. h3 {[%emt 0:00:31]} Bd5 {[%emt 0:00:58]} 29. Na4 {[%emt 0:02:17]} h5 {[%emt 0:01:15]} 30. Nc3 {[%emt 0:02:28]} Ba8 {[%emt 0:05:44]} 31. Qe3 {[%emt 0:01:15]} h4 {[%emt 0:03:20]} 32. Rg4 {[%emt 0:00:39]} Rxg4 {[%emt 0:02:25]} 33. hxg4 {[%emt 0:00:02]} Qg6 {[%emt 0:02:22]} 34. g5 {[%emt 0:00:45]} Qf5 {[%emt 0:00:26]} 35. Rd4 {[%emt 0:03:26]} Kh8 {[%emt 0:02:26]} 36. Rd2 {[%emt 0:00:42]} Qg4 {[%emt 0:01:13]} 37. Rf2 {[%emt 0:00:34]} Rf3 {[%emt 0:00:43]} 38. Qd4 {[%emt 0:00:30]} h3 {[%emt 0:01:31]} 39. g6 {[%emt 0:00:32]} Qxg6 {[%emt 0:12:13]} 40. Qd8+ {[%emt 0:00:01]} Kh7 {[%emt 0:00:09]} 41. Qh4+ {[%emt 0:00:04]} Kg8 {[%emt 0:00:07]} 42. Qd8+ {[%emt 0:00:04]} Kf7 {[%emt 0:02:55]} 43. Qd7+ {[%emt 0:00:29]} Kg8 {[%emt 0:04:15]} 44. Qd8+ {[%emt 0:00:02]} Kf7 {[%emt 0:00:13]} 45. Qd7+ {[%emt 0:00:02]} 1/2-1/2

[Event "26th Abu Dhabi Master 2019"]
[Site "Abu Dhabi"]
[Date "2019.08.03"]
[Round "2.18"]
[White "Jobava, Baadur"]
[Black "Agmanov, Zhandos"]
[Result "1-0"]
[ECO "E40"]
[WhiteElo "2594"]
[BlackElo "2402"]
[Annotator "ChessBase"]
[PlyCount "63"]
[EventDate "2019.08.02"]
[EventType "swiss"]
[EventCountry "UAE"]
[SourceTitle "playchess.com"]
[Source "ChessBase"]
[SourceQuality "1"]
[TimeControl "5400+30"]

1. d4 {[%emt 0:05:07]} Nf6 {[%emt 0:00:19]} 2. c4 {[%emt 0:00:13]} e6 {[%emt 0:00:14]} 3. Nc3 {[%emt 0:00:10]} Bb4 {[%emt 0:00:45]} 4. e3 {[%emt 0:00:08]} d5 {[%emt 0:00:21]} 5. cxd5 {[%emt 0:00:08]} exd5 {[%emt 0:00:18]} 6. Bd3 {[%emt 0:00:06]} O-O {[%emt 0:03:39]} 7. Nge2 {[%emt 0:00:06]} Re8 {[%emt 0:04:22]} 8. Bd2 {[%emt 0:03:15]} Bd6 {[%emt 0:02:36]} 9. Rc1 {[%emt 0:02:28]} c6 {[%emt 0:01:06]} 10. f3 {[%emt 0:00:42]} Nh5 {[%emt 0:08:07]} 11. Kf2 {[%emt 0:05:42]} f5 {[%emt 0:20:02]} 12. h4 {[%emt 0:13:58]} Be6 {[%emt 0:11:39]} 13. Qb3 {[%emt 0:02:03]} b6 {[%emt 0:01:10]} 14. Qa4 {[%emt 0:01:07]} a6 {[%emt 0:05:05]} 15. Qc2 {[%emt 0:02:11]} g6 {[%emt 0:07:51]} 16. Na4 {[%emt 0:04:01]} a5 {[%emt 0:01:39]} 17. Qb3 {[%emt 0:04:25]} Bc7 {[%emt 0:00:07]} 18. g3 {[%emt 0:00:46]} Bf7 {[%emt 0:07:34]} 19. Nf4 {[%emt 0:06:43]} Nxf4 {[%emt 0:00:48]} 20. gxf4 {[%emt 0:00:04]} h5 {[%emt 0:00:43]} 21. Qc2 {[%emt 0:00:53]} Qf6 {[%emt 0:01:14]} 22. Nc3 {[%emt 0:05:20]} Bd6 {[%emt 0:02:33]} 23. Rcg1 {[%emt 0:00:21]} Kh7 {[%emt 0:01:07]} 24. Rg5 {[%emt 0:00:50]} Be6 {[%emt 0:00:42]} 25. Rhg1 {[%emt 0:01:22]} Rg8 {[%emt 0:00:41]} 26. e4 {[%emt 0:03:37]} Bxf4 {[%emt 0:05:54]} 27. e5 {[%emt 0:02:10]} Bxe5 {[%emt 0:00:17]} 28. dxe5 {[%emt 0:00:06]} Qxe5 {[%emt 0:00:03]} 29. Ne2 {[%emt 0:00:38]} Qh2+ {[%emt 0:01:10]} 30. R1g2 {[%emt 0:00:06]} Qxh4+ {[%emt 0:00:06]} 31. Kg1 {[%emt 0:00:04]} Nd7 {[%emt 0:02:22]} 32. Rh2 {[%emt 0:00:20]} 1-0

[Event "26th Abu Dhabi Master 2019"]
[Site "Abu Dhabi"]
[Date "2019.08.03"]
[Round "2.19"]
[White "Ni, Shiqun"]
[Black "Idani, Pouya"]
[Result "0-1"]
[ECO "B06"]
[WhiteElo "2407"]
[BlackElo "2595"]
[Annotator "ChessBase"]
[PlyCount "58"]
[EventDate "2019.08.02"]
[EventType "swiss"]
[EventCountry "UAE"]
[SourceTitle "playchess.com"]
[Source "ChessBase"]
[SourceQuality "1"]
[TimeControl "5400+30"]

1. e4 {[%emt 0:06:12]} g6 {[%emt 0:00:00]} 2. d4 {[%emt 0:00:14]} Bg7 {[%emt 0:00:00]} 3. Nf3 {[%emt 0:00:49]} d6 {[%emt 0:00:00]} 4. Nc3 {[%emt 0:00:06]} a6 {[%emt 0:00:00]} 5. Be2 {[%emt 0:00:09]} Nf6 {[%emt 0:00:00]} 6. O-O {[%emt 0:01:26]} O-O {[%emt 0:00:04]} 7. Re1 {[%emt 0:10:28]} Nc6 {[%emt 0:00:09]} 8. d5 {[%emt 0:00:07]} Nb8 {[%emt 0:00:37]} 9. a4 {[%emt 0:01:12]} e5 {[%emt 0:00:12]} 10. dxe6 {[%emt 0:00:06]} Bxe6 {[%emt 0:00:06]} 11. Nd4 {[%emt 0:01:35]} Nc6 {[%emt 0:00:39]} 12. Nxe6 {[%emt 0:01:57]} fxe6 {[%emt 0:00:31]} 13. Bc4 {[%emt 0:06:07]} Qe7 {[%emt 0:04:51]} 14. Be3 {[%emt 0:08:33]} Ne5 {[%emt 0:11:14]} 15. Be2 {[%emt 0:00:05]} c5 {[%emt 0:00:04]} 16. h3 {[%emt 0:01:31]} Nfd7 {[%emt 0:07:08]} 17. Qb1 {[%emt 0:03:13]} Nc6 {[%emt 0:00:27]} 18. Qa2 {[%emt 0:03:15]} Bd4 {[%emt 0:02:19]} 19. Bc4 {[%emt 0:01:51]} Rae8 {[%emt 0:00:56]} 20. Rad1 {[%emt 0:06:13]} Nde5 {[%emt 0:01:10]} 21. Rd2 {[%emt 0:01:59]} Bxe3 {[%emt 0:06:44]} 22. Rxe3 {[%emt 0:00:04]} Kh8 {[%emt 0:00:43]} 23. Nd1 {[%emt 0:07:39]} Rf4 {[%emt 0:19:13]} 24. c3 {[%emt 0:00:51]} d5 {[%emt 0:01:26]} 25. Bxd5 {[%emt 0:27:03]} exd5 {[%emt 0:00:47]} 26. exd5 {[%emt 0:00:03]} Qd6 {[%emt 0:04:43]} 27. Rde2 {[%emt 0:05:37]} Na5 {[%emt 0:07:42]} 28. g3 {[%emt 0:00:57]} Rf3 {[%emt 0:00:21]} 29. Re4 Rd3 0-1

[Event "26th Abu Dhabi Master 2019"]
[Site "Abu Dhabi"]
[Date "2019.08.03"]
[Round "2.21"]
[White "Soumya, Swaminathan"]
[Black "Aleksandrov, Aleksej"]
[Result "0-1"]
[ECO "C90"]
[WhiteElo "2402"]
[BlackElo "2571"]
[Annotator "ChessBase"]
[PlyCount "114"]
[EventDate "2019.08.02"]
[EventType "swiss"]
[EventCountry "UAE"]
[SourceTitle "playchess.com"]
[Source "ChessBase"]
[SourceQuality "1"]
[TimeControl "5400+30"]

1. e4 {[%emt 0:09:26]} e5 {[%emt 0:00:00]} 2. Nf3 {[%emt 0:00:24]} Nc6 {[%emt 0:00:00]} 3. Bb5 {[%emt 0:00:09]} a6 {[%emt 0:00:00]} 4. Ba4 {[%emt 0:00:04]} Nf6 {[%emt 0:00:00]} 5. O-O {[%emt 0:00:08]} Be7 {[%emt 0:00:00]} 6. d3 {[%emt 0:00:17]} b5 {[%emt 0:04:06]} 7. Bb3 {[%emt 0:00:03]} d6 {[%emt 0:00:04]} 8. c3 {[%emt 0:01:25]} O-O {[%emt 0:01:04]} 9. Re1 {[%emt 0:00:15]} h6 {[%emt 0:13:38]} 10. Nbd2 {[%emt 0:03:34]} Re8 {[%emt 0:00:04]} 11. a4 {[%emt 0:13:31]} Bd7 {[%emt 0:02:37]} 12. Bc2 {[%emt 0:01:40]} Bf8 {[%emt 0:08:22]} 13. Nf1 {[%emt 0:07:45]} b4 {[%emt 0:01:45]} 14. Ne3 {[%emt 0:01:48]} a5 {[%emt 0:11:54]} 15. h3 {[%emt 0:03:09]} bxc3 {[%emt 0:05:09]} 16. bxc3 {[%emt 0:00:03]} Be6 {[%emt 0:01:28]} 17. Bd2 {[%emt 0:13:01]} Rb8 {[%emt 0:00:47]} 18. d4 {[%emt 0:04:24]} exd4 {[%emt 0:00:14]} 19. Nxd4 {[%emt 0:00:04]} Bd7 {[%emt 0:00:13]} 20. Nc4 {[%emt 0:03:01]} Ne5 {[%emt 0:00:15]} 21. Nxe5 {[%emt 0:01:26]} dxe5 {[%emt 0:00:07]} 22. Nb3 {[%emt 0:01:16]} Be6 {[%emt 0:02:54]} 23. Nxa5 {[%emt 0:01:36]} Qd6 {[%emt 0:00:08]} 24. Be3 {[%emt 0:16:25]} Qa6 {[%emt 0:08:49]} 25. Nb3 {[%emt 0:00:15]} Red8 {[%emt 0:05:13]} 26. Nd2 {[%emt 0:02:18]} Qa5 {[%emt 0:00:18]} 27. Rb1 {[%emt 0:06:08]} Qxc3 {[%emt 0:03:19]} 28. Rxb8 {[%emt 0:00:03]} Rxb8 {[%emt 0:00:02]} 29. Nf3 {[%emt 0:04:07]} Rb2 {[%emt 0:04:13]} 30. Bd3 {[%emt 0:00:40]} Ra2 {[%emt 0:00:31]} 31. Bb1 {[%emt 0:01:46]} Ra1 {[%emt 0:00:34]} 32. Qd8 {[%emt 0:01:58]} Nd7 {[%emt 0:01:40]} 33. Kh2 {[%emt 0:02:16]} c6 {[%emt 0:06:09]} 34. Bd2 {[%emt 0:00:25]} Qb2 {[%emt 0:03:28]} 35. Bd3 {[%emt 0:01:24]} Rxa4 {[%emt 0:00:09]} 36. Rb1 {[%emt 0:00:29]} Qa3 {[%emt 0:00:09]} 37. Bc2 {[%emt 0:00:32]} Ra8 {[%emt 0:01:13]} 38. Qh4 {[%emt 0:01:03]} Qe7 {[%emt 0:07:31]} 39. Qg3 {[%emt 0:00:14]} Qf6 {[%emt 0:00:07]} 40. Bc3 {[%emt 0:00:31]} Ra3 {[%emt 0:02:28]} 41. Bb2 {[%emt 0:00:29]} Ra2 {[%emt 0:00:03]} 42. Nd2 {[%emt 0:00:56]} Bc5 {[%emt 0:01:05]} 43. Kg1 {[%emt 0:00:12]} g5 {[%emt 0:03:13]} 44. Bd3 {[%emt 0:00:30]} Ra4 {[%emt 0:02:01]} 45. Bc2 {[%emt 0:00:43]} Rb4 {[%emt 0:00:32]} 46. Bc3 {[%emt 0:00:34]} Rxb1+ {[%emt 0:00:08]} 47. Bxb1 {[%emt 0:00:11]} Qf4 {[%emt 0:01:16]} 48. Qxf4 {[%emt 0:00:07]} gxf4 {[%emt 0:00:21]} 49. Nf3 {[%emt 0:00:14]} f6 {[%emt 0:00:09]} 50. Bc2 {[%emt 0:00:49]} Nb6 {[%emt 0:00:56]} 51. Kf1 {[%emt 0:00:43]} Kf7 {[%emt 0:00:07]} 52. Ke1 {[%emt 0:00:25]} Ke7 {[%emt 0:00:28]} 53. Bd1 {[%emt 0:00:54]} Nc4 {[%emt 0:01:15]} 54. Ba4 {[%emt 0:00:21]} Kd7 {[%emt 0:00:05]} 55. Bb3 {[%emt 0:00:39]} Nd6 {[%emt 0:00:04]} 56. Bc2 {[%emt 0:00:26]} Bb6 {[%emt 0:01:42]} 57. Ba4 {[%emt 0:00:39]} Nxe4 0-1

[Event "26th Abu Dhabi Master 2019"]
[Site "Abu Dhabi"]
[Date "2019.08.03"]
[Round "2.22"]
[White "Yuffa, Daniil"]
[Black "Mullick, Raahil"]
[Result "1-0"]
[ECO "D12"]
[WhiteElo "2582"]
[BlackElo "2211"]
[Annotator "ChessBase"]
[PlyCount "65"]
[EventDate "2019.08.02"]
[EventType "swiss"]
[EventCountry "UAE"]
[SourceTitle "playchess.com"]
[Source "ChessBase"]
[SourceQuality "1"]
[TimeControl "5400+30"]

1. d4 {[%emt 0:05:02]} d5 {[%emt 0:00:00]} 2. c4 {[%emt 0:00:12]} c6 {[%emt 0:00:00]} 3. Nf3 {[%emt 0:00:07]} Nf6 {[%emt 0:00:00]} 4. e3 {[%emt 0:00:06]} Bf5 {[%emt 0:00:00]} 5. Nc3 {[%emt 0:00:20]} e6 {[%emt 0:00:00]} 6. Nh4 {[%emt 0:00:07]} Be4 {[%emt 0:00:00]} 7. f3 {[%emt 0:00:14]} Bg6 {[%emt 0:00:00]} 8. Qb3 {[%emt 0:00:07]} Qc7 {[%emt 0:00:02]} 9. Bd2 {[%emt 0:00:08]} Be7 {[%emt 0:00:05]} 10. g3 {[%emt 0:00:05]} Nbd7 {[%emt 0:00:37]} 11. cxd5 {[%emt 0:00:17]} exd5 {[%emt 0:00:19]} 12. Nxg6 {[%emt 0:00:11]} hxg6 {[%emt 0:00:08]} 13. O-O-O {[%emt 0:00:06]} b5 {[%emt 0:08:37]} 14. Kb1 {[%emt 0:01:01]} Nb6 {[%emt 0:02:01]} 15. Qc2 {[%emt 0:06:17]} Nc4 {[%emt 0:11:06]} 16. Bc1 {[%emt 0:00:51]} Qd7 {[%emt 0:11:25]} 17. e4 {[%emt 0:06:09]} O-O {[%emt 0:05:27]} 18. e5 {[%emt 0:02:00]} Ne8 {[%emt 0:07:10]} 19. h4 {[%emt 0:01:28]} b4 {[%emt 0:07:00]} 20. Na4 {[%emt 0:10:12]} Nc7 {[%emt 0:11:50]} 21. h5 {[%emt 0:02:43]} gxh5 {[%emt 0:04:48]} 22. Rxh5 {[%emt 0:00:57]} g6 {[%emt 0:01:51]} 23. Rh6 {[%emt 0:00:26]} Kg7 {[%emt 0:01:16]} 24. Bd3 {[%emt 0:03:28]} Rg8 {[%emt 0:07:51]} 25. Bxg6 {[%emt 0:01:16]} fxg6 {[%emt 0:00:15]} 26. Rxg6+ {[%emt 0:00:18]} Kf7 {[%emt 0:01:16]} 27. e6+ {[%emt 0:00:10]} Qxe6 {[%emt 0:01:07]} 28. Rxe6 {[%emt 0:00:08]} Nxe6 {[%emt 0:00:03]} 29. Qf5+ {[%emt 0:01:31]} Bf6 {[%emt 0:00:06]} 30. g4 {[%emt 0:03:34]} Nd6 {[%emt 0:00:49]} 31. Qh5+ {[%emt 0:00:30]} Ke7 {[%emt 0:01:12]} 32. Re1 {[%emt 0:01:25]} Rh8 {[%emt 0:00:04]} 33. Bh6 {[%emt 0:01:47]} 1-0